fUSD/lending_fUSD_20240222
["ID","MTS","AMOUNT","RATE_DAILY","PERIOD"]
[314873340,1708605048327,-500.0,0.0003315,4]
[314873341,1708605048336,-500.0,0.0003315,4]
[314873342,1708605048345,-605.04,0.0003315,4]
[314873343,1708605048354,-500.0,0.0003315,4]
[314873344,1708605048364,-500.0,0.0003315,4]
[314873345,1708605048373,-500.0,0.0003315,4]
[314873346,1708605048383,-665.65,0.0003315,4]
[314873347,1708605048393,-751.06,0.0003315,4]
[314873348,1708605048402,-500.0,0.0003315,4]
[314873349,1708605048411,-702.56,0.0003315,4]
[314873350,1708605048420,-500.0,0.0003315,4]
[314873351,1708605048429,-500.0,0.0003315,4]
[314873352,1708605048438,-528.54,0.0003315,4]
[314873353,1708605048448,-500.0,0.0003315,4]
[314873354,1708605048458,-500.0,0.0003315,4]
[314873355,1708605048467,-556.73,0.0003315,4]
[314873356,1708605048477,-500.0,0.0003315,4]
[314873357,1708605048486,-500.0,0.0003315,4]
[314873358,1708605048495,-552.29,0.0003315,4]
[314873359,1708605048504,-500.0,0.0003315,4]
[314873360,1708605048513,-784.94,0.0003315,4]
[314873361,1708605048523,-500.0,0.0003315,4]
[314873362,1708605048532,-646.21,0.0003315,4]
[314873363,1708605048542,-705.65,0.0003315,4]
[314873364,1708605048551,-500.0,0.0003315,4]
[314873365,1708605048560,-731.6,0.0003315,4]
[314873366,1708605048569,-500.0,0.0003315,4]
[314873367,1708605048579,-500.0,0.0003315,4]
[314873368,1708605048588,-698.42,0.0003315,4]
[314873369,1708605048597,-500.0,0.0003315,4]
[314873370,1708605048606,-737.08,0.0003315,4]
[314873371,1708605048615,-704.7,0.0003315,4]
[314873372,1708605048625,-500.0,0.0003315,4]
[314873373,1708605048634,-500.0,0.0003315,4]
[314873374,1708605048646,-500.0,0.0003315,4]
[314873375,1708605048655,-687.38,0.0003315,4]
[314873376,1708605048664,-580.54,0.0003315,4]
[314873377,1708605048675,-500.0,0.0003315,4]
[314873378,1708605048684,-500.0,0.0003315,4]
[314873379,1708605048694,-500.0,0.0003315,4]
[314873380,1708605048704,-1013.62,0.0003315,4]
[314873381,1708605048714,-500.0,0.0003315,4]
[314873382,1708605048725,-500.0,0.0003315,4]
[314873383,1708605048734,-500.0,0.0003315,4]
[314873384,1708605048743,-500.0,0.0003315,2]
[314873385,1708605048753,-1079.18,0.0003315,4]
[314873386,1708605048762,-518.66,0.0003315,4]
[314873387,1708605048773,-619.18,0.0003315,4]
[314873388,1708605048782,-500.0,0.0003315,4]
[314873389,1708605048791,-291.09501039,0.0003315,4]
[314873390,1708605048801,-500.0,0.0003315,4]
[314873391,1708605048810,-500.0,0.0003315,4]
[314873392,1708605048819,-205.57869452,0.0003315,4]
[314873393,1708605048828,-500.0,0.0003315,4]
[314873394,1708605048837,-500.0,0.0003315,4]
[314873395,1708605048846,-500.0,0.0003315,4]
[314873396,1708605048855,-500.0,0.0003315,2]
[314873397,1708605048864,-769.76,0.0003315,4]
[314873398,1708605048873,-1007.23,0.0003315,4]
[314873399,1708605048882,-500.0,0.0003315,4]
[314873400,1708605048891,-500.0,0.0003315,4]
[314873401,1708605048900,-500.0,0.0003315,4]
[314873402,1708605048909,-500.0,0.0003315,4]
[314873403,1708605048918,-700.11,0.0003315,4]
[314873404,1708605048927,-502.21,0.0003315,4]
[314873405,1708605048936,-417.49946274,0.0003315,4]
[314873406,1708605048945,-500.0,0.0003315,4]
[314873407,1708605048954,-500.0,0.0003315,4]
[314873408,1708605048963,-500.0,0.0003315,4]
[314873409,1708605048973,-500.0,0.0003315,2]
[314873410,1708605048982,-500.0,0.0003315,4]
[314873411,1708605048991,-535.61,0.0003315,4]
[314873412,1708605049000,-632.36,0.0003315,4]
[314873413,1708605049010,-684.6,0.0003315,4]
[314873414,1708605049019,-500.0,0.0003315,4]
[314873415,1708605049028,-500.0,0.0003315,4]
[314873416,1708605049037,-500.0,0.0003315,4]
[314873417,1708605049047,-500.0,0.0003315,4]
[314873418,1708605049056,-500.0,0.0003315,4]
[314873419,1708605049065,-500.0,0.0003315,4]
[314873420,1708605049074,-500.0,0.0003315,2]
[314873421,1708605049083,-522.05068338,0.0003315,4]
[314873422,1708605049092,-724.72,0.0003315,4]
[314873423,1708605049101,-607.82,0.0003315,4]
[314873424,1708605049110,-597.9,0.0003315,4]
[314873425,1708605049119,-500.0,0.0003315,2]
[314873426,1708605049129,-882.95,0.0003315,4]
[314873427,1708605049138,-500.0,0.0003315,4]
[314873428,1708605049148,-500.0,0.0003315,4]
[314873429,1708605049157,-500.0,0.0003315,4]
[314873430,1708605049166,-631.38383829,0.0003315,4]
[314873431,1708605049176,-500.0,0.0003315,4]
[314873432,1708605049185,-500.0,0.0003315,4]
[314873433,1708605049194,-661.99,0.0003315,4]
[314873434,1708605049203,-697.17,0.0003315,4]
[314873435,1708605049212,-827.6,0.0003315,4]
[314873436,1708605049221,-500.0,0.0003315,4]
[314873437,1708605049230,-507.9,0.0003315,4]
[314873438,1708605049239,-576.22,0.0003315,4]
[314873439,1708605049249,-781.48,0.0003315,4]
[314873440,1708605049260,-500.0,0.0003315,4]
[314873441,1708605049272,-1118.85,0.0003315,4]
[314873442,1708605049281,-500.0,0.0003315,4]
[314873443,1708605049291,-500.0,0.0003315,4]
[314873444,1708605049300,-500.0,0.0003315,4]
[314873445,1708605049310,-601.88574881,0.0003315,4]
[314873446,1708605049319,-500.0,0.0003315,4]
[314873447,1708605049328,-727.09,0.0003315,4]
[314873448,1708605049337,-500.0,0.0003315,4]
[314873449,1708605049347,-500.0,0.0003315,4]
[314873450,1708605049356,-500.0,0.0003315,4]
[314873451,1708605049365,-500.0,0.0003315,4]
[314873452,1708605049374,-500.0,0.0003315,4]
[314873453,1708605049383,-500.0,0.0003315,4]
[314873454,1708605049393,-789.75,0.0003315,4]
[314873455,1708605049402,-500.0,0.0003315,4]
[314873456,1708605049411,-500.0,0.0003315,4]
[314873457,1708605049421,-500.0,0.0003315,4]
[314873458,1708605049431,-500.0,0.0003315,4]
[314873459,1708605049442,-607.79,0.0003315,4]
[314873460,1708605049451,-500.0,0.0003315,4]
[314873461,1708605049460,-500.0,0.0003315,4]
[314873462,1708605049470,-964.18,0.0003315,4]
[314873463,1708605049479,-500.0,0.0003315,4]
[314873464,1708605049489,-1142.53,0.0003315,4]
[314873465,1708605049498,-500.0,0.0003315,4]
[314873466,1708605049507,-750.51,0.0003315,4]
[314873467,1708605049516,-626.74,0.0003315,4]
[314873468,1708605049527,-500.0,0.0003315,4]
[314873469,1708605049536,-500.0,0.0003315,4]
[314873470,1708605049545,-562.71,0.0003315,4]
[314873471,1708605049554,-501.72,0.0003315,4]
[314873472,1708605049564,-500.0,0.0003315,4]
[314873473,1708605049574,-537.63,0.0003315,4]
[314873474,1708605049582,-968.27,0.0003315,4]
[314873475,1708605049592,-500.0,0.0003315,4]
[314873476,1708605049601,-845.75,0.0003315,4]
[314873477,1708605049610,-500.0,0.0003315,4]
[314873478,1708605049620,-1044.05,0.0003315,4]
[314873479,1708605049629,-623.71,0.0003315,4]
[314873480,1708605049639,-710.45,0.0003315,4]
[314873481,1708605049649,-1163.04,0.0003315,2]
[314873482,1708605049659,-500.0,0.0003315,4]
[314873483,1708605049668,-675.53,0.0003315,4]
[314873484,1708605049678,-500.0,0.0003315,4]
[314873485,1708605049689,-781.75,0.0003315,4]
[314873486,1708605049698,-500.0,0.0003315,4]
[314873487,1708605049708,-369.51266229,0.0003315,4]
[314873488,1708605049719,-768.77,0.0003315,4]
[314873489,1708605049728,-501.22,0.0003315,4]
[314873490,1708605049737,-500.0,0.0003315,4]
[314873491,1708605049747,-963.0,0.0003315,4]
[314873492,1708605049757,-500.0,0.0003315,4]
[314873493,1708605049766,-844.1,0.0003315,4]
[314873494,1708605049776,-500.0,0.0003315,4]
[314873495,1708605049786,-998.62,0.0003315,4]
[314873496,1708605049795,-867.92,0.0003315,4]
[314873497,1708605049804,-500.0,0.0003315,4]
[314873498,1708605049814,-500.0,0.0003315,4]
[314873499,1708605049823,-500.0,0.0003315,4]
[314873500,1708605049833,-500.0,0.0003315,4]
[314873501,1708605049842,-500.0,0.0003315,4]
[314873502,1708605049852,-526.46,0.0003315,4]
[314873503,1708605049861,-500.0,0.0003315,4]
[314873504,1708605049872,-500.0,0.0003315,4]
[314873505,1708605049881,-796.69,0.0003315,4]
[314873506,1708605049891,-793.57,0.0003315,4]
[314873507,1708605049900,-500.0,0.0003315,4]
[314873508,1708605049909,-500.0,0.0003315,4]
[314873509,1708605049918,-935.73,0.0003315,4]
[314873510,1708605049928,-500.0,0.0003315,4]
[314873511,1708605049938,-608.56,0.0003315,4]
[314873512,1708605049947,-500.0,0.0003315,4]
[314873513,1708605049956,-697.13,0.0003315,4]
[314873514,1708605049966,-500.0,0.0003315,4]
[314873515,1708605049975,-1241.26,0.0003315,4]
[314873516,1708605049984,-500.0,0.0003315,4]
[314873517,1708605049994,-500.0,0.0003315,4]
[314873518,1708605050003,-571.37,0.0003315,4]
[314873519,1708605050012,-500.0,0.0003315,4]
[314873520,1708605050022,-500.0,0.0003315,4]
[314873521,1708605050031,-500.0,0.0003315,4]
[314873522,1708605050040,-1389.73,0.0003315,4]
[314873523,1708605050048,-500.0,0.0003315,4]
[314873524,1708605050057,-500.0,0.0003315,4]
[314873525,1708605050067,-517.22350661,0.0003315,4]
[314873526,1708605050076,-500.0,0.0003315,4]
[314873527,1708605050085,-563.89,0.0003315,4]
[314873528,1708605050095,-500.0,0.0003315,4]
[314873529,1708605050104,-500.0,0.0003315,4]
[314873530,1708605050113,-895.11,0.0003315,4]
[314873531,1708605050122,-525.23,0.0003315,4]
[314873532,1708605050132,-500.0,0.0003315,4]
[314873533,1708605050141,-500.0,0.0003315,4]
[314873534,1708605050150,-671.26,0.0003315,4]
[314873535,1708605050159,-500.0,0.0003315,4]
[314873536,1708605050168,-500.0,0.0003315,4]
[314873537,1708605050177,-500.0,0.0003315,4]
[314873538,1708605050187,-503.64,0.0003315,4]
[314873539,1708605050196,-564.9,0.0003315,4]
[314873540,1708605050205,-500.0,0.0003315,4]
[314873541,1708605050215,-500.0,0.0003315,4]
[314873542,1708605050225,-687.12,0.0003315,4]
[314873543,1708605050235,-500.0,0.0003315,4]
[314873544,1708605050245,-639.73,0.0003315,4]
[314873545,1708605050255,-500.0,0.0003315,4]
[314873546,1708605050264,-500.0,0.0003315,4]
[314873547,1708605050275,-500.0,0.0003315,4]
[314873548,1708605050284,-872.7,0.0003315,4]
[314873549,1708605050294,-2597.64,0.0003315,4]
[314873550,1708605050303,-589.84,0.0003315,4]
[314873551,1708605050312,-500.0,0.0003315,4]
[314873552,1708605050322,-4071.1,0.0003315,4]
[314873553,1708605050331,-568.68,0.0003315,4]
[314873554,1708605050340,-540.9,0.0003315,4]
[314873555,1708605050349,-500.0,0.0003315,4]
[314873556,1708605050358,-206.87,0.0003315,4]
[314873557,1708605050367,-500.0,0.0003315,4]
[314873558,1708605050377,-559.69,0.0003315,4]
[314873559,1708605050386,-4040.2,0.0003315,4]
[314873560,1708605050395,-500.0,0.0003315,4]
[314873561,1708605050406,-500.0,0.0003315,4]
[314873562,1708605050415,-638.08,0.0003315,4]
[314873563,1708605050424,-2906.13,0.0003315,4]
[314873564,1708605050434,-696.29,0.0003315,4]
[314873565,1708605050443,-500.0,0.0003315,4]
[314873566,1708605050452,-1430.27,0.0003315,4]
[314873567,1708605050461,-1085.47,0.0003315,4]
[314873568,1708605050471,-768.99,0.0003315,4]
[314873569,1708605050480,-500.0,0.0003315,4]
[314873570,1708605050490,-500.0,0.0003315,4]
[314873571,1708605050499,-500.0,0.0003315,4]
[314873572,1708605050508,-5041.44,0.0003315,4]
[314873573,1708605050519,-500.0,0.0003315,4]
[314873574,1708605050528,-500.0,0.0003315,4]
[314873575,1708605050537,-500.0,0.0003315,4]
[314873576,1708605050547,-895.54,0.0003315,4]
[314873577,1708605050556,-500.0,0.0003315,4]
[314873578,1708605050566,-606.35,0.0003315,4]
[314873579,1708605050576,-936.79,0.0003315,4]
[314873580,1708605050585,-1142.99,0.0003315,4]
[314873581,1708605050594,-500.0,0.0003315,4]
[314873582,1708605050605,-3156.69,0.0003315,4]
[314873583,1708605050614,-924.73,0.0003315,4]
[314873584,1708605050624,-500.0,0.0003315,4]
[314873585,1708605050634,-500.0,0.0003315,4]
[314873586,1708605050644,-500.0,0.0003315,4]
[314873587,1708605050656,-500.0,0.0003315,4]
[314873588,1708605050665,-500.0,0.0003315,4]
[314873589,1708605050674,-2485.39,0.0003315,4]
[314873590,1708605050686,-749.02,0.0003315,4]
[314873591,1708605050695,-500.0,0.0003315,4]
[314873592,1708605050705,-2440.22,0.0003315,4]
[314873593,1708605050715,-500.0,0.0003315,4]
[314873594,1708605050725,-8539.25,0.0003315,4]
[314873595,1708605050735,-573.73654336,0.0003315,4]
[314873596,1708605050744,-1446.96,0.0003315,4]
[314873597,1708605050754,-500.0,0.0003315,4]
[314873598,1708605050764,-509.85,0.0003315,4]
[314873599,1708605050775,-500.0,0.0003315,4]
[314873600,1708605050785,-961.76,0.0003315,4]
[314873601,1708605050794,-500.99,0.0003315,4]
[314873602,1708605050803,-3953.53,0.0003315,4]
[314873603,1708605050813,-3774.61,0.0003315,4]
[314873604,1708605050823,-500.0,0.0003315,4]
[314873605,1708605050832,-2108.45,0.0003315,4]
[314873606,1708605050841,-1172.54,0.0003315,4]
[314873607,1708605050850,-1110.03,0.0003315,4]
[314873608,1708605050859,-542.13,0.0003315,4]
[314873609,1708605050869,-500.0,0.0003315,4]
[314873610,1708605050879,-721.25,0.0003315,4]
[314873611,1708605050888,-414.23611145,0.0003315,4]
[314873612,1708605050897,-500.0,0.0003315,4]
[314873613,1708605050906,-2241.65,0.0003315,4]
[314873614,1708605050915,-37214.87,0.0003315,4]
[314873615,1708605050924,-500.0,0.0003315,4]
[314873616,1708605050934,-1002.58,0.0003315,4]
[314873617,1708605050943,-500.0,0.0003315,4]
[314873618,1708605050952,-2325.63,0.0003315,4]
[314873619,1708605050961,-4257.1,0.0003315,4]
[314873620,1708605050971,-829.37,0.0003315,4]
[314873621,1708605050980,-11520.73,0.0003315,4]
[314873622,1708605050989,-500.0,0.0003315,4]
[314873623,1708605050998,-612.91,0.0003315,4]
[314873624,1708605051007,-576.34,0.0003315,4]
[314873625,1708605051016,-1556.29,0.0003315,4]
[314873626,1708605051025,-3002.82,0.0003315,4]
[314873627,1708605051035,-2330.01,0.0003315,4]
[314873628,1708605051044,-672.14,0.0003315,4]
[314873629,1708605051054,-726.72,0.0003315,4]
[314873630,1708605051063,-513.24,0.0003315,4]
[314873631,1708605051072,-500.0,0.0003315,4]
[314873632,1708605051081,-500.0,0.0003315,4]
[314873633,1708605051090,-831.08,0.0003315,4]
[314873634,1708605051099,-500.0,0.0003315,4]
[314873635,1708605051108,-500.0,0.0003315,4]
[314873636,1708605051118,-900.33,0.0003315,4]
[314873637,1708605051127,-500.0,0.0003315,4]
[314873638,1708605051136,-904.07,0.0003315,4]
[314873639,1708605051145,-13085.58,0.0003315,4]
[314873640,1708605051155,-500.0,0.0003315,4]
[314873641,1708605051164,-500.0,0.0003315,4]
[314873642,1708605051173,-639.74,0.0003315,4]
[314873643,1708605051182,-692.93,0.0003315,4]
[314873644,1708605051192,-1560.71,0.0003315,4]
[314873645,1708605051201,-500.0,0.0003315,4]
[314873646,1708605051210,-500.0,0.0003315,4]
[314873647,1708605051220,-8110.16,0.0003315,4]
[314873648,1708605051229,-500.0,0.0003315,4]
[314873649,1708605051238,-500.0,0.0003315,4]
[314873650,1708605051247,-943.68,0.0003315,4]
[314873651,1708605051256,-959.58,0.0003315,4]
[314873652,1708605051266,-500.0,0.0003315,4]
[314873653,1708605051276,-500.0,0.0003315,4]
[314873654,1708605051286,-500.0,0.0003315,4]
[314873655,1708605051295,-1108.93,0.0003315,4]
[314873656,1708605051304,-1228.15,0.0003315,4]
[314873657,1708605051313,-2804.44,0.0003315,4]
[314873658,1708605051324,-6890.18,0.0003315,4]
[314873659,1708605051333,-996.16,0.0003315,4]
[314873660,1708605051342,-500.0,0.0003315,4]
[314873661,1708605051435,-7770.02,0.0003315,4]
[314873662,1708605051482,-715.76,0.0003315,4]
[314873663,1708605051492,-500.0,0.0003315,4]
[314873664,1708605051502,-5957.17,0.0003315,4]
[314873665,1708605051512,-500.0,0.0003315,4]
[314873666,1708605051523,-500.0,0.0003315,4]
[314873667,1708605051533,-1454.44,0.0003315,4]
[314873668,1708605051543,-1413.34,0.0003315,4]
[314873669,1708605051554,-500.0,0.0003315,4]
[314873670,1708605051563,-2680.78,0.0003315,4]
[314873671,1708605051574,-802.17,0.0003315,4]
[314873672,1708605051584,-674.66,0.0003315,4]
[314873673,1708605051594,-8515.98,0.0003315,4]
[314873674,1708605051603,-547.27,0.0003315,4]
[314873675,1708605051613,-2093.0,0.0003315,4]
[314873676,1708605051624,-758.92,0.0003315,4]
[314873677,1708605051634,-500.0,0.0003315,4]
[314873678,1708605051646,-223.2046013,0.0003315,4]
[314873679,1708605051656,-500.0,0.0003315,4]
[314873680,1708605051666,-589.46,0.0003315,4]
[314873681,1708605051675,-913.74,0.0003315,4]
[314873682,1708605051685,-478.49914931,0.0003315,4]
[314873683,1708605051695,-500.0,0.0003315,4]
[314873684,1708605051705,-3446.52,0.0003315,4]
[314873685,1708605051714,-548.21,0.0003315,4]
[314873686,1708605051726,-3716.15,0.0003315,4]
[314873687,1708605051736,-500.0,0.0003315,4]
[314873688,1708605051746,-208.89118281,0.0003315,4]
[314873689,1708605051756,-1774.96,0.0003315,4]
[314873690,1708605051765,-1289.6,0.0003315,4]
[314873691,1708605051776,-500.0,0.0003315,4]
[314873692,1708605051787,-559.69,0.0003315,4]
[314873693,1708605051796,-1177.27,0.0003315,4]
[314873694,1708605051805,-3513.37,0.0003315,4]
[314873695,1708605051817,-799.57,0.0003315,4]
[314873696,1708605051827,-1631.26,0.0003315,4]
[314873697,1708605051838,-500.0,0.0003315,4]
[314873698,1708605051847,-500.0,0.0003315,4]
[314873699,1708605051856,-500.0,0.0003315,4]
[314873700,1708605051867,-1271.81,0.0003315,4]
[314873701,1708605051877,-500.0,0.0003315,4]
[314873702,1708605051888,-16009.77,0.0003315,4]
[314873703,1708605051898,-2043.21,0.0003315,4]
[314873704,1708605051908,-1275.56,0.0003315,4]
[314873705,1708605051918,-500.0,0.0003315,4]
[314873706,1708605051927,-1687.82,0.0003315,4]
[314873707,1708605051936,-500.0,0.0003315,4]
[314873708,1708605051945,-500.0,0.0003315,4]
[314873709,1708605051954,-861.28,0.0003315,4]
[314873710,1708605051964,-1798.41,0.0003315,4]
[314873711,1708605051973,-866.78,0.0003315,4]
[314873712,1708605051982,-687.84,0.0003315,4]
[314873713,1708605051991,-702.3,0.0003315,4]
[314873714,1708605052000,-686.04,0.0003315,4]
[314873715,1708605052009,-1310.46,0.0003315,4]
[314873716,1708605052019,-1146.27,0.0003315,4]
[314873717,1708605052028,-2092.9,0.0003315,4]
[314873718,1708605052037,-1592.92,0.0003315,4]
[314873719,1708605052047,-847.68,0.0003315,4]
[314873720,1708605052056,-500.0,0.0003315,4]
[314873721,1708605052066,-873.77,0.0003315,4]
[314873722,1708605052075,-601.97,0.0003315,4]
[314873723,1708605052085,-834.33,0.0003315,4]
[314873724,1708605052094,-689.26,0.0003315,4]
[314873725,1708605052104,-500.0,0.0003315,4]
[314873726,1708605052113,-3896.0,0.0003315,4]
[314873727,1708605052123,-500.0,0.0003315,4]
[314873728,1708605052132,-1337.74,0.0003315,4]
[314873729,1708605052141,-619.82,0.0003315,4]
[314873730,1708605052150,-2617.07,0.0003315,4]
[314873731,1708605052159,-1185.31,0.0003315,4]
[314873732,1708605052169,-2178.92,0.0003315,4]
[314873733,1708605052178,-1187.74,0.0003315,4]
[314873734,1708605052188,-500.0,0.0003315,4]
[314873735,1708605052197,-633.55,0.0003315,4]
[314873736,1708605052206,-2190.87,0.0003315,4]
[314873737,1708605052215,-2111.44,0.0003315,4]
[314873738,1708605052225,-602.64,0.0003315,4]
[314873739,1708605052234,-898.03,0.0003315,4]
[314873740,1708605052243,-584.08,0.0003315,4]
[314873741,1708605052253,-4335.03,0.0003315,4]
[314873742,1708605052262,-1315.85,0.0003315,4]
[314873743,1708605052273,-1713.79,0.0003315,4]
[314873744,1708605052282,-885.21,0.0003315,4]
[314873745,1708605052291,-777.44,0.0003315,4]
[314873746,1708605052300,-10920.58,0.0003315,4]
[314873747,1708605052310,-500.0,0.0003315,4]
[314873748,1708605052319,-756.3,0.0003315,4]
[314873749,1708605052329,-1493.9,0.0003315,4]
[314873750,1708605052338,-1274.89,0.0003315,4]
[314873751,1708605052347,-500.0,0.0003315,4]
[314873752,1708605052358,-500.0,0.0003315,4]
[314873753,1708605052367,-6672.64,0.0003315,4]
[314873754,1708605052376,-500.0,0.0003315,4]
[314873755,1708605052385,-2178.74,0.0003315,4]
[314873756,1708605052394,-500.0,0.0003315,4]
[314873757,1708605052403,-2569.07,0.0003315,4]
[314873758,1708605052413,-550.27,0.0003315,4]
[314873759,1708605052422,-1428.56,0.0003315,4]
[314873760,1708605052431,-500.0,0.0003315,4]
[314873761,1708605052440,-558.19,0.0003315,4]
[314873762,1708605052449,-6844.32,0.0003315,4]
[314873763,1708605052459,-573.44,0.0003315,4]
[314873764,1708605052468,-1091.56,0.0003315,4]
[314873765,1708605052478,-5762.85,0.0003315,4]
[314873766,1708605052487,-3005.02,0.0003315,4]
[314873767,1708605052497,-184.32992331,0.0003315,4]
[314873768,1708605052506,-500.0,0.0003315,4]
[314873769,1708605052516,-1544.49,0.0003315,4]
[314873770,1708605052526,-500.0,0.0003315,2]
[314873771,1708605052536,-755.13,0.0003315,4]
[314873772,1708605052546,-2918.3,0.0003315,4]
[314873773,1708605052555,-500.0,0.0003315,4]
[314873774,1708605052565,-500.0,0.0003315,4]
[314873775,1708605052574,-845.02,0.0003315,4]
[314873776,1708605052584,-1276.67,0.0003315,4]
[314873777,1708605052594,-1508.96,0.0003315,4]
[314873778,1708605052604,-3127.03,0.0003315,4]
[314873779,1708605052614,-500.0,0.0003315,4]
[314873780,1708605052624,-676.78,0.0003315,4]
[314873781,1708605052634,-686.67,0.0003315,4]
[314873782,1708605052645,-986.43,0.0003315,4]
[314873783,1708605052655,-7316.14,0.0003315,4]
[314873784,1708605052665,-1518.65,0.0003315,4]
[314873785,1708605052674,-3350.24,0.0003315,4]
[314873786,1708605052684,-500.0,0.0003315,4]
[314873787,1708605052694,-500.0,0.0003315,4]
[314873788,1708605052704,-500.0,0.0003315,4]
[314873789,1708605052713,-1195.61,0.0003315,4]
[314873790,1708605052723,-4294.7,0.0003315,4]
[314873791,1708605052733,-733.56,0.0003315,4]
[314873792,1708605052742,-500.0,0.0003315,4]
[314873793,1708605052752,-500.0,0.0003315,4]
[314873794,1708605052762,-3597.34,0.0003315,4]
[314873795,1708605052772,-1126.48,0.0003315,4]
[314873796,1708605052782,-334.94459714,0.0003315,4]
[314873797,1708605052792,-500.0,0.0003315,4]
[314873798,1708605052801,-500.0,0.0003315,4]
[314873799,1708605052811,-1261.6,0.0003315,4]
[314873800,1708605052820,-930.39,0.0003315,4]
[314873801,1708605052829,-833.97,0.0003315,4]
[314873802,1708605052839,-728.46,0.0003315,4]
[314873803,1708605052849,-1065.6,0.0003315,4]
[314873804,1708605052858,-5269.02,0.0003315,4]
[314873805,1708605052868,-1216.42,0.0003315,4]
[314873806,1708605052878,-666.81,0.0003315,4]
[314873807,1708605052887,-725.69,0.0003315,4]
[314873808,1708605052897,-500.0,0.0003315,4]
[314873809,1708605052906,-649.26,0.0003315,4]
[314873810,1708605052916,-1897.03,0.0003315,4]
[314873811,1708605052925,-1114.56,0.0003315,4]
[314873812,1708605052934,-500.0,0.0003315,4]
[314873813,1708605052944,-769.83,0.0003315,4]
[314873814,1708605052954,-500.0,0.0003315,4]
[314873815,1708605052963,-1604.53,0.0003315,4]
[314873816,1708605052972,-16240.41,0.0003315,4]
[314873817,1708605052981,-853.73,0.0003315,4]
[314873818,1708605052990,-636.12,0.0003315,4]
[314873819,1708605053000,-1059.18,0.0003315,4]
[314873820,1708605053009,-500.0,0.0003315,4]
[314873821,1708605053020,-10010.34,0.0003315,4]
[314873822,1708605053029,-500.0,0.0003315,4]
[314873823,1708605053038,-2353.34,0.0003315,4]
[314873824,1708605053048,-2230.62,0.0003315,4]
[314873825,1708605053057,-1238.83,0.0003315,4]
[314873826,1708605053067,-500.0,0.0003315,4]
[314873827,1708605053076,-570.23,0.0003315,4]
[314873828,1708605053085,-500.0,0.0003315,4]
[314873829,1708605053094,-1165.66,0.0003315,4]
[314873830,1708605053103,-1323.27,0.0003315,4]
[314873831,1708605053112,-500.0,0.0003315,4]
[314873832,1708605053121,-500.0,0.0003315,4]
[314873833,1708605053130,-500.0,0.0003315,4]
[314873834,1708605053139,-1311.92,0.0003315,4]
[314873835,1708605053148,-800.38,0.0003315,4]
[314873836,1708605053157,-1446.03,0.0003315,4]
[314873837,1708605053166,-601.69384031,0.0003315,4]
[314873838,1708605053175,-5292.13,0.0003315,4]
[314873839,1708605053184,-500.0,0.0003315,4]